Cogmind - Beta 15 @@@ ROGUE MODE // 2025.05.18 @ 12:26:26 Player: Sap Result: Destroyed by LT-ENE(j) with Overtuned Pulse Rifle Performance ------------- Evolutions (0) 0 Regions Visited (5) 1000 Robots Destroyed (17) 85 Value Destroyed (447) 447 Prototype IDs (13) 260 Alien Tech Used (0) 0 Bonus (800) 800 TOTAL SCORE: 2592 Bonus ------- Registered with UFD 300 Met Optimus in HQ 500 Cogmind --------- Core Integrity 0/250 Matter 296/300 Energy 290/290 System Corruption 0% Temperature Cool (65) Movement Core (350) Ox6 Location -9/Scraptown Parts ------- > --- POWER (1) -------- Improved Deuterium Engine > --- PROPULSION (2) --- (None) > --- UTILITY (2) ------ Scrap Suit > --- WEAPON (2) ------- Improved Light Cannon Makeshift Spear > --- INVENTORY (5) ---- Overtuned Treads Overtuned Titanium Leg Experimental Terrain Scanner Advanced Weapon Cycler Makeshift Hacking Suite Peak State ------------ > --- POWER ------------ Improved Deuterium Engine > --- PROPULSION ------- Overtuned Treads Overtuned Treads > --- UTILITY ---------- Scrap Suit > --- WEAPON ----------- Improved Light Cannon Makeshift Spear > --- INVENTORY -------- Overtuned Treads Overtuned Titanium Leg Experimental Terrain Scanner Advanced Weapon Cycler Makeshift Hacking Suite [Rating: 26] Favorites ----------- Power Ion Engine Engine Ion Engine Power Core Fusion Compressor Propulsion Light Treads Treads Light Treads Leg Overtuned Titanium Leg Utility Small Storage Unit Device Scrap Suit Storage Small Storage Unit Processor Visual Processing Unit Weapon Improved Light Cannon Energy Gun EM Pulse Gun Ballistic Gun Bolt Gun Ballistic Cannon Improved Light Cannon Special Weapon CPS Tube Slashing Weapon Ripteeth Piercing Weapon Makeshift Spear Build | -11 -10 -10 -10 -9 -9 ------- Run | Yrd Mat Min Sub Rec Scr Slots Evolved . | . . . . . . Power . | . . . . . . Propulsion . | . . . . . . Utility . | . . . . . . Weapon . | . . . . . . Parts Attached 28 | 6 3 . . . 19 Power 5 | 1 . . . . 4 Engine 4 | 1 . . . . 3 Core 1 | . . . . . 1 Reactor . | . . . . . . Propulsion 9 | 2 . . . . 7 Treads 7 | 2 . . . . 5 Leg 2 | . . . . . 2 Wheel . | . . . . . . Hover . | . . . . . . Flight . | . . . . . . Utility 7 | 1 1 . . . 5 Device 2 | . . . . . 2 Storage 3 | 1 . . . . 2 Processor 2 | . 1 . . . 1 Hackware . | . . . . . . Protection . | . . . . . . Artifact . | . . . . . . Weapon 7 | 2 2 . . . 3 Energy Gun 2 | 2 . . . . . Energy Cannon . | . . . . . . Ballistic Gun 1 | . . . . . 1 Ballistic Cannon 3 | . 2 . . . 1 Launcher . | . . . . . . Special Weapon 1 | . . . . . 1 Impact Weapon . | . . . . . . Slashing Weapon . | . . . . . . Piercing Weapon . | . . . . . . Special Melee Weapon . | . . . . . . Unidentified Prototypes . | . . . . . . Parts Lost 4 | . . . . . 4 Power . | . . . . . . Propulsion 2 | . . . . . 2 Utility . | . . . . . . Weapon 2 | . . . . . 2 Highest Loss Streak 2 | . . . . . 2 To Critical Strikes . | . . . . . . Average Backups 6 | 3 6 8 8 8 6 Power . | . 1 1 1 1 . Propulsion 1 | 2 3 3 3 3 1 Utility . | . . . . . . Weapon 3 | . 2 4 4 4 4 Tool/Special . | . . . . . . Unused Backups 12 | . 2 . . 1 9 Power . | . . . . . . Propulsion 7 | . 2 . . 1 4 Utility 2 | . . . . . 2 Weapon 3 | . . . . . 3 Tool/Special . | . . . . . . Average Slot Usage (%) 88 | . 98 100 100 100 84 Engine 13 | . 14 14 14 14 13 Treads 27 | . 28 28 28 28 27 Device 3 | . . . . . 4 Storage 11 | . 14 14 14 14 10 Processor 10 | . 12 14 14 14 8 Energy Gun 2 | . 15 . . . . Ballistic Cannon 18 | . 12 28 28 28 16 Peak Build Rating 26 | 6 11 11 11 11 26 Average Rating 11 | 4 9 11 11 10 12 On Entrance 8 | . 6 11 11 11 11 Naked Turns . | . . . . . . Heaviest Build 209 | 13 18 18 18 18 209 Greatest Support 43 | 40 40 40 40 40 43 Greatest Overweight (x) 5 | 2 . . 5 5 5 Average Overweight (x) . | . . . 1 . . Largest Inventory Capacity 35 | 8 8 8 8 8 35 Average Capacity 7 | 7 8 8 8 8 7 Most Carried 8 | 6 8 8 8 8 8 Average Carried 6 | 3 6 8 8 7 6 Final Capacity 8 | 8 8 8 8 8 5 Final Carried 8 | 6 8 8 8 8 5 Class Distribution -------------------- 81% | Mutant 14% | Scrapper 3% | Scavenger-Scrapper Dominant Class ---------------- Mutant | -10/Materials Mutant | -10/Mines Mutant | -10/Subcaves Mutant | -9/Recycling Mutant | -9/Scraptown Resources | -11 -10 -10 -10 -9 -9 ----------- Run | Yrd Mat Min Sub Rec Scr Matter Collected 779 | 212 137 32 88 . 310 Remotely . | . . . . . . Salvage Created 431 | . 163 75 13 65 115 Parts 29 | . 16 2 3 . 8 Haulers Intercepted . | . . . . . . Recyclers Shooed . | . . . . . . Parts Field Recycled . | . . . . . . Retrieved Matter . | . . . . . . Parts Self-Destructed 8 | . . . 8 . . Prevented . | . . . . . . Kills | -11 -10 -10 -10 -9 -9 ------- Run | Yrd Mat Min Sub Rec Scr Combat Hostiles Destroyed 11 | . 5 2 1 . 3 Guns 3 | . 3 . . . . Cannons 8 | . 2 2 1 . 3 Classes Destroyed 9 | . 4 . 1 1 3 Recycler 1 | . . . . 1 . Operator 1 | . 1 . . . . Turret 2 | . . . 2 . . Watcher 2 | . 2 . . . . Swarmer 4 | . 3 . 1 . . Grunt 4 | . 2 2 . . . Federalist 1 | . . . . . 1 Explorer 1 | . . . . . 1 Scrapper 1 | . . . . . 1 Best Kill Streak 3 | . 3 2 2 1 1 Combat Bots Only 3 | . 3 2 1 . 1 Max Kills in Single Turn 1 | . 1 1 1 1 1 Gunslinging . | . . . . . . Exploded . | . . . . . . Melee . | . . . . . . Uniques/NPCs Destroyed . | . . . . . . Combat | -11 -10 -10 -10 -9 -9 -------- Run | Yrd Mat Min Sub Rec Scr Hostile Shots Fired 204 | . 20 6 83 . 95 Missed 59 | . 5 2 34 . 18 Hits 145 | . 15 4 49 . 77 Melee 43 | . . . . . 43 Projectile 102 | . 15 4 49 . 34 Critical Strikes 4 | . . . . . 4 Damage Taken 1437 | . 165 46 353 . 873 Core 259 | . 71 14 53 . 121 Absorbed by Shields . | . . . . . . Regen/Repaired (Parts) 20 | . . . . . 20 Core Remaining (%) 100 | 100 . . . . . Volleys Fired 59 | . 19 4 11 . 25 Largest 2 | . 2 2 2 . 2 Hottest 80 | . 80 66 66 . 66 Shots Fired 94 | . 37 8 22 . 27 Gun 25 | . 25 . . . . Cannon 69 | . 12 8 22 . 27 Launcher . | . . . . . . Special . | . . . . . . Kinetic 69 | . 12 8 22 . 27 Thermal 12 | . 12 . . . . Explosive . | . . . . . . Electromagnetic 13 | . 13 . . . . Robot Hit Streak 9 | . 3 5 2 . 9 Robot Miss Streak 5 | . 2 2 5 . 1 Penetration Max . | . . . . . . Secondary Targets . | . . . . . . Shots Hit Robots 52 | . 20 4 7 . 21 Core Hits 21 | . 9 3 3 . 6 Critical Kills . | . . . . . . Critical Parts Destroyed . | . . . . . . Critical Strikes 2 | . . 1 1 . . Blast 2 | . . 1 1 . . Melee Attacks . | . . . . . . Impact . | . . . . . . Slashing . | . . . . . . Piercing . | . . . . . . Sneak Attacks . | . . . . . . Combat Hostiles . | . . . . . . Follow-up Attacks . | . . . . . . Damage Inflicted 1083 | 4 379 110 163 20 407 Guns 185 | . 185 . . . . Cannons 829 | . 149 110 163 . 407 Explosions 32 | . 32 . . . . Melee . | . . . . . . Ramming 37 | 4 13 . . 20 . Kinetic 829 | . 149 110 163 . 407 Thermal 65 | . 65 . . . . Explosive . | . . . . . . Electromagnetic 152 | . 152 . . . . Impact . | . . . . . . Slashing . | . . . . . . Piercing . | . . . . . . Highest Corruption . | . . . . . . Average Corruption . | . . . . . . Corruption Purged . | . . . . . . Corruption Blocked . | . . . . . . Overload Shots . | . . . . . . Overflow Damage 22 | . . . 7 . 15 Projectiles 22 | . . . 7 . 15 Explosions . | . . . . . . Melee . | . . . . . . Knockbacks 15 | . 2 1 3 1 8 Impact 1 | . . . . 1 . Kinetic 14 | . 2 1 3 . 8 Secondary . | . . . . . . Self-Inflicted Damage . | . . . . . . Shots . | . . . . . . Rammed 9 | 1 3 . . 4 1 Targets Rammed 10 | 1 3 . . 5 1 Kicked . | . . . . . . Crushed 1 | . . . . 1 . Highest Temperature 111 | . 90 33 6 . 111 Average Temperature 31 | . 33 17 6 . 33 Received Heat Transfer 657 | . 39 27 216 . 375 Siege Activations . | . . . . . . Martial Activations . | . . . . . . Shielding Activations . | . . . . . . Robots Disrupted . | . . . . . . Combat Hostiles . | . . . . . . Robots Corrupted . | . . . . . . Combat Hostiles . | . . . . . . Parts Fried 1 | . 1 . . . . Impact Corruptions . | . . . . . . Robots Melted . | . . . . . . Combat Hostiles . | . . . . . . Parts Melted . | . . . . . . Heat Transferred 125 | . 125 . . . . Parts Sabotaged . | . . . . . . Parts Stolen 1 | . . . . . 1 Parts Stripped . | . . . . . . Power Chain Reactions 1 | . 1 . . . . Alert | -11 -10 -10 -10 -9 -9 ------- Run | Yrd Mat Min Sub Rec Scr Maximum Alert Level . | . . . . . . Low Security (%) 100 | 100 100 100 . 100 . Level 1 . | . . . . . . Level 2 . | . . . . . . Level 3 . | . . . . . . Level 4 . | . . . . . . Level 5 . | . . . . . . High Security . | . . . . . . Max Security . | . . . . . . Peak Influence 60 | . 60 51 . 24 . Initial 24 | . . . . 24 . Average 8 | . 12 25 . 2 . Influence Increases 387 | . 187 51 120 29 . Destroy 0b10 Robot/C 200 | . 100 40 60 . . Destroy 0b10 Robot/NC 20 | . 15 . . 5 . Destroy Leader 34 | . 24 10 . . . Successful Hack 40 | . 16 . . 24 . Disable Machine 15 | . 15 . . . . Destroy Structure 3 | . 2 1 . . . Partial Spotted 15 | . 15 . . . . Lose Combat Pursuer 60 | . . . 60 . . Influence Decreases 387 | . 187 40 81 79 . Entered New Map 33 | . . . 7 26 . Time Decay 354 | . 187 40 74 53 . Squads Dispatched 1 | . 1 . . . . Investigation . | . . . . . . Extermination . | . . . . . . Reinforcement 1 | . 1 . . . . Assault . | . . . . . . Garrison . | . . . . . . Intercept . | . . . . . . Searches Triggered . | . . . . . . Construction Impeded . | . . . . . . Haulers Reinforced . | . . . . . . Active Scanning Responses . | . . . . . . Cargo Convoy Interrupts . | . . . . . . Stealth | -11 -10 -10 -10 -9 -9 --------- Run | Yrd Mat Min Sub Rec Scr Distress Signals . | . . . . . . Communications Jammed . | . . . . . . Distress Signals . | . . . . . . Times Spotted 34 | . 10 2 6 . 16 Peak Tracking Total 7 | . 3 2 5 . 7 Tactical Retreats 1 | . . . 1 . . Traps | -11 -10 -10 -10 -9 -9 ------- Run | Yrd Mat Min Sub Rec Scr Traps Triggered 2 | . 2 . . . . Indirectly . | . . . . . . Trap Hack Attempts . | . . . . . . Triggered . | . . . . . . Disarmed . | . . . . . . Reprogrammed . | . . . . . . Reused . | . . . . . . Traps Extracted . | . . . . . . Installed . | . . . . . . Triggered . | . . . . . . Machines | -11 -10 -10 -10 -9 -9 ---------- Run | Yrd Mat Min Sub Rec Scr Machines Disabled 3 | . 1 . 2 . . Max in Single Turn 1 | . 1 . 1 . . Machines Repaired . | . . . . . . Machines Dismantled . | . . . . . . Machines Sabotaged . | . . . . . . Overloaded Fab Kills . | . . . . . . Hacking | -11 -10 -10 -10 -9 -9 --------- Run | Yrd Mat Min Sub Rec Scr Machines Accessed 22 | . 3 . . 7 12 Terminals 8 | . 3 . . 5 . Fabricators . | . . . . . . Repair Stations . | . . . . . . Recycling Units . | . . . . . . Scanalyzers . | . . . . . . Garrison Access . | . . . . . . Total Hacks 127 | . 9 . . 43 75 Successful 111 | . 4 . . 32 75 Failed 16 | . 5 . . 11 . Catastrophic 1 | . . . . 1 . Database Lockouts . | . . . . . . Manual 18 | . 5 . . 13 . Terminals 28 | . 9 . . 19 . Fabricators . | . . . . . . Repair Stations . | . . . . . . Recycling Units . | . . . . . . Scanalyzers . | . . . . . . Garrison Access . | . . . . . . Terminal Hacks 107 | . 3 . . 29 75 Record 97 | . . . . 24 73 Open Door 1 | . . . . . 1 Branch Access Points 3 | . 2 . . 1 . Emergency Access Points 1 | . . . . 1 . Alert Level 1 | . 1 . . . . Hauler Manifests 1 | . . . . 1 . Zone Layout 2 | . . . . 2 . Proto ID Catalog 1 | . . . . . 1 Fabricator Hacks . | . . . . . . Repair Station Hacks . | . . . . . . Recycling Unit Hacks . | . . . . . . Scanalyzer . | . . . . . . Garrison Access Hacks . | . . . . . . Unauthorized Hacks 4 | . 1 . . 3 . Terminals 4 | . 1 . . 3 . Track 3 | . 1 . . 2 . Assimilate 1 | . . . . 1 . Fabricators . | . . . . . . Repair Stations . | . . . . . . Recycling Units . | . . . . . . Scanalyzers . | . . . . . . Garrison Access . | . . . . . . Data Cores Recovered 1 | . 1 . . . . Used . | . . . . . . Hacking Detections 8 | . 3 . . 5 . Full Trace Events . | . . . . . . Feedback Events . | . . . . . . Feedback Blocked . | . . . . . . Robot Schematics Acquired . | . . . . . . Robots Built . | . . . . . . Authchips . | . . . . . . Time . | . . . . . . Total Robot Build Rating . | . . . . . . Part Schematics Acquired . | . . . . . . Parts Built . | . . . . . . Authchips . | . . . . . . Time . | . . . . . . Total Part Build Rating . | . . . . . . Parts Repaired . | . . . . . . Time . | . . . . . . Parts Recycled . | . . . . . . Recycled Matter . | . . . . . . Retrieved Matter . | . . . . . . Retrieved Components . | . . . . . . Parts Scanalyzed . | . . . . . . Part Schematics Acquired . | . . . . . . Parts Damaged . | . . . . . . Bothacking | -11 -10 -10 -10 -9 -9 ------------ Run | Yrd Mat Min Sub Rec Scr Used RIF Installer . | . . . . . . Robots Hacked . | . . . . . . Non-combat . | . . . . . . Combat . | . . . . . . Robot Hacks Applied . | . . . . . . Relay Couplers Released . | . . . . . . Fabnet Peak Effective % . | . . . . . . Robots Rewired . | . . . . . . Allies Hacked . | . . . . . . Hacks Repelled . | . . . . . . Allies | -11 -10 -10 -10 -9 -9 -------- Run | Yrd Mat Min Sub Rec Scr Total Allies . | . . . . . . Largest Group . | . . . . . . Highest-Rated Group . | . . . . . . Highest-Rated Ally . | . . . . . . Total Orders . | . . . . . . Ally Attacks . | . . . . . . Total Damage . | . . . . . . Kills . | . . . . . . Allies Corrupted . | . . . . . . Allies Melted 6 | . . . . . 6 Intel | -11 -10 -10 -10 -9 -9 ------- Run | Yrd Mat Min Sub Rec Scr Active Infowar (turns) 4812 | . 728 81 222 682 3099 Optics 4328 | . 728 81 222 682 2615 Terrain 484 | . . . . . 484 Robot Analysis Total . | . . . . . . Derelict Logs Recovered . | . . . . . . Drone Launches . | . . . . . . Drone Recoveries . | . . . . . . Exploration | -11 -10 -10 -10 -9 -9 ------------- Run | Yrd Mat Min Sub Rec Scr Turns Passed 6533 | 121 826 81 222 682 4601 Spaces Moved 3821 | 58 433 42 98 413 2777 Core 33 | 7 . . 24 2 . Treads 3754 | 51 433 42 74 411 2743 Legs 34 | . . . . . 34 Wheels . | . . . . . . Hover . | . . . . . . Flight . | . . . . . . Fastest Speed 50 | 50 160 160 160 160 100 Average Speed 160 | 154 160 160 194 160 159 Slowest Speed 560 | 160 160 160 300 300 560 Overloaded Moves . | . . . . . . Propulsion Burnouts . | . . . . . . Robots Hopped . | . . . . . . Potential Cave-ins . | . . . . . . Cave-ins Triggered . | . . . . . . Exploration Rate (%) 38 | 5 53 9 8 64 94 Regions Visited 5 Branch Regions 4 Pre-discovered Areas . | . . . . . . Known Exits Taken 1 | . 1 . . . . Unknown Exits Taken 4 | 1 . 1 1 1 . Scrap Searched 2 | . . . . . 2 Spaces Dug . | . . . . . . Terrain Destroyed 5 | . 2 1 1 . 1 Melee . | . . . . . . Projectile 3 | . . 1 1 . 1 AOE 2 | . 2 . . . . Terrain Rammed . | . . . . . . Walls Destroyed . | . . . . . . Machines Disabled . | . . . . . . Actions | -11 -10 -10 -10 -9 -9 --------- Run | Yrd Mat Min Sub Rec Scr Total 4136 | 86 528 48 109 429 2936 Wait 149 | 16 60 3 1 . 69 Move 3816 | 57 432 41 97 412 2777 Hop . | . . . . . . Pick Up 20 | 6 5 . . 1 8 Fast Attach 21 | 6 4 . . . 11 Attach 5 | . 1 . . . 4 Detach . | . . . . . . Swap 8 | . . . . . 8 Drop 33 | . 4 . . 1 28 Fire 59 | . 19 4 11 . 25 Melee . | . . . . . . Ram . | . . . . . . Kick . | . . . . . . Crush 10 | 1 3 . . 5 1 Escape Stasis . | . . . . . . Rewire 15 | . . . . 10 5 Trap . | . . . . . . Miscellaneous . | . . . . . . Route ------- -11/Scrapyard -10/Materials (discovered 2 exits: [*Mat] / *Min) -10/Mines -10/Subcaves -9/Recycling -9/Scraptown (discovered 1 exit: [*Fac]) History --------- Turn | Location | Event 25 | -11/Scrapyard | Discovered new exit (range 15) 122 | -11/Scrapyard | Entered Materials 204 | -10/Materials | Discovered new exit (range 16) 305 | -10/Materials | Identified exit to Mines 317 | -10/Materials | Build established: Mutant 494 | -10/Materials | Discovered new exit (range 4) 948 | -10/Materials | Entered Mines 1019 | -10/Mines | Discovered new exit (range 8) 1029 | -10/Mines | Entered Subcaves 1139 | -10/Subcaves | Discovered new exit (range 14) 1161 | -10/Subcaves | Core integrity fell below 50% 1251 | -10/Subcaves | Entered Recycling 1252 | -9/Recycling | Met a Zionite searching for Scraptown 1871 | -9/Recycling | Scanned before Scraplab entrance 1927 | -9/Recycling | Discovered new exit (range 2) 1933 | -9/Recycling | Entered Scraptown 2559 | -9/Scraptown | Heard Great Nut preacher, LISTEN AND RECITE! 2764 | -9/Scraptown | Received an X-ray algorithm 2820 | -9/Scraptown | Visited Shadow of the Wyrm 2865 | -9/Scraptown | Visited Fellowship of the Rings 3156 | -9/Scraptown | Visited Junk Repository 3629 | -9/Scraptown | Visited Symbiants 3683 | -9/Scraptown | Visited Supply Room 3717 | -9/Scraptown | Visited UFD Registry 3717 | -9/Scraptown | Registered with UFD as "Laserrigger" 3739 | -9/Scraptown | Visited Cyclists 3768 | -9/Scraptown | Entered Cyclist Reading Room 3809 | -9/Scraptown | Visited Comm Corps 4101 | -9/Scraptown | Discovered new exit (range 13) 4535 | -9/Scraptown | Visited Infowarlord's Domain 4549 | -9/Scraptown | Found Exp. Terrain Scanner 4651 | -9/Scraptown | Visited Curators Association 4785 | -9/Scraptown | Visited Abandonware Association 4811 | -9/Scraptown | Learned abandonware demo "HACKBUD.EXE" 4811 | -9/Scraptown | Learned abandonware demo "ERRANTS.EXE" 4846 | -9/Scraptown | Visited LU-1G1's Boring Crew 5331 | -9/Scraptown | Visited Sword Containment 5386 | -9/Scraptown | Visited Scrap Suit Storage 5395 | -9/Scraptown | Found Scrap Suit 5468 | -9/Scraptown | Visited Research Penetration Think Tank 5496 | -9/Scraptown | Visited DA-N13 Charitable Foundation 5507 | -9/Scraptown | Found DCF Scrap (28 items) 5693 | -9/Scraptown | Build established: Scrapper 5758 | -9/Scraptown | Visited Science Testing Area 5819 | -9/Scraptown | Visited Science Guys 6051 | -9/Scraptown | Met Optimus 6051 | -9/Scraptown | Accepted into 0bPrime 6236 | -9/Scraptown | Civil war broke out across Scraptown 6299 | -9/Scraptown | Lost 4 allies 6345 | -9/Scraptown | Optimus destroyed in the chaos of civil war 6440 | -9/Scraptown | Core integrity fell below 20% 6458 | -9/Scraptown | Lost 6 allies 6534 | -9/Scraptown | Destroyed by LT-ENE(j) with Overtuned Pulse Rifle Last Messages --------------- 06490_ 3Q-HXL(E) destroyed. 06491_ Slug penetrates Reinforced Barrier. 06496_ Slug penetrates BP-K6X(g). 06496_ BP-K6X(g) destroyed. 06504_ C6-TB2(j) destroyed. 06510_ 0B-6C3(j) destroyed. 06513_ WD-ING(E) destroyed. 06514_ Acquired 2 matter. 06517_ ZJ-QCP(E): "We will win here, and we will win in 0b1. Believe it." 06524_ Bolt penetrates Wall. 06525_ Ovr. Treads destroyed. 06527_ Bolt penetrates Wall. 06527_ Acquired 1 matter. 06529_ LT-ENE(j): "I'm having second thoughts about this." 06530_ Bolt penetrates Wall. 06531_ Ovr. Treads destroyed. 06532_ Bolt penetrates Wall. 06533_ ZJ-QCP(E) heat spikes uncontrollably. 06533_ Critical hit (Burn: +50). [Achievement: This Is Interesting...] Map ----- +----------------------------------------------------+ | ??# """"""""#?#" """#??????????????#??????#? | | # ### " ""#?#" """#??????????????????????? | | " """ "#?#"""""""#???????#??????????????? | | """ " ""#?#########???????#??????????#???? | | " """"""""#???#?????????????????????????#??? | | ##"""####?????#######????????#??#??????#?? | | "" " ######????????#""#""#"?????????????####### | | " #########?????# X "#????????#?????# # | | """"" ## # # #?????#X "#?????#????????# # | | ##### ## " " ##????# #???????#??????# # | | ????# #" "#???##"# #"#??????????????# # | | ##### # #????### ########?????????# # | | # #????#"[ "#?????????# # | | # #????#" X#?????#???# # | | ##### # #????# * "#?????????# # | | ???# # #????#*= !%! #?????????#### ## | | ??### ### ############j###;######???#???#####!## | | ??# %%= !!=!%= ##???#??#"""[! " | | ### % ! !*= #???????# =![%*= | | # ! #???????#!%* !!= | | %[!! #####???#=!%= = | | # !!%! #???????# = [% | | # #### ###########;=[ % #???##### ]=%! | | # ## ###!*= #???#"""" [%" | | # ##" "#?#%!=!% !*#???#""" *! !" | | # ##" ######" "###@E=[ =%!#???#""""%/] " | | # ##" "#""" # "#?# !%= [*!#???#""""=! " | | # ##" "# #" "#?#% =%!#??##"""" " | | ### ##" # ""#" "#?# =!%###?#"""" " | | ??# ##" ##+###" "#?# =""#"#"""" " | | ??# ##" "#?# %""""#"""" " | | ??# ##""""""""""""#?# %%!""####### " | | ??# ###############?#!![* %!!####????# " | | ### #?????????????###%=%% !!*%#########"% " | | # #?????????????# "!=! %*!!=%*=!=% = = " | | # #?????????????###=*[=!![=[%!%%/%!%= [%* " | | # #????????????#??#=!%!! !==!!! [! " | | # #???????????#???#![!%= =*= " | | # #################%[*![TT [ " | | # %=*!%! !=[ !* | | !%!!=! !%! !! | | # != = !%= !!=% | | # *![!= ! =*! | | ### != =%=!%[! %=[ ==! | | %%!=[!!=!!!!%* #""""# *!%* | | =%!*%=!*%!!![= #""??#" %!=! | | /!=[*[[=[%%*! %! #????#"""""!! | | ############ ####### ##########== ####????######%! | | #?# #?#" "#???#=!!#?????"?##" | | #?#" "#?#"" "##??#%[*#????"??###"" | +----------------------------------------------------+ Best States ------------- Heat Dissipation 25 Energy Generation 16 Energy Capacity 290 Matter Stores 300 Matter Capacity 300 Sight Range 18 Terrain Scan Range 30 Terrain Scan Density 10 Evasion (%) 55 Recoil Reduction 2 Item Schematics ----------------- None Robot Schematics ------------------ None Fabricated ------------ Nothing Repaired ---------- Nothing Alien Tech Used ----------------- None Achievements -------------- Tank This Is Interesting... root@ Challenges ------------ None Game ------ Seed ArmorGatlingWarhead Manual? 0 Play Time 01:51:33 Cumulative 34.5 hours Start 2025.05.12 @ 06:48:21 End 2025.05.18 @ 12:26:26 Sessions 8 Manual Loads 0 Difficulty Rogue Special Mode None Game No. 29 Rogue 28 Adventurer 0 Explorer 1 Win Type - Total 0 Types 0/0/0/0/0/0/0/0/0/0 Lore% 26 Gallery% 27 Achievement% 20 Wizard Run 0 Options --------- Layout 0 ASCII 0 Keyboard 0 Movement Vi Keybinds 1 Fullscreen 2 Font 24/Smallcaps Map View 76x50 Zoom Use 0% Tactical HUD 1 Map Filters NONE Filters NONE Steam 1 RUN: 2589247b-7194-4929-8334-5d6555fa91ef